[Event "69th RUS-ch Women Higher League 2019"]
[Site "Yaroslavl"]
[Date "2019.07.05"]
[Round "8.5"]
[White "Bulatova, Kamaliya"]
[Black "Kovalevskaya, Ekaterina"]
[Result "1/2-1/2"]
[ECO "E40"]
[WhiteElo "2102"]
[BlackElo "2413"]
[Annotator "NA"]
[PlyCount "134"]
[EventDate "2019.06.27"]
[EventType "swiss"]
[EventCountry "RUS"]
[SourceTitle "playchess.com"]
[Source "ChessBase"]
[SourceQuality "1"]
[TimeControl "40/5400+30:1800+30"]

1. d4 {[%emt 0:00:00]} Nf6 {[%emt 0:00:00]} 2. c4 {[%emt 0:00:00]} e6 {[%emt 0:00:00]} 3. Nc3 {[%emt 0:00:00]} Bb4 {[%emt 0:00:08]} 4. e3 {[%emt 0:00:00]} Nc6 {[%emt 0:00:32]} 5. Bd3 {[%emt 0:03:29]} e5 {[%emt 0:00:44]} 6. d5 {[%emt 0:01:08]} e4 {[%emt 0:06:13]} 7. Be2 {[%emt 0:14:19]} Bxc3+ {[%emt 0:06:57]} 8. bxc3 {[%emt 0:00:13]} Ne5 {[%emt 0:08:45]} 9. f4 {[%emt 0:06:57]} exf3 {[%emt 0:11:08]} 10. Nxf3 {[%emt 0:01:11]} Nxf3+ {[%emt 0:00:13]} 11. gxf3 {[%emt 0:04:08]} d6 {[%emt 0:00:10]} 12. Rg1 {[%emt 0:05:26]} Nh5 {[%emt 0:15:53]} 13. Qd4 {[%emt 0:06:23]} O-O {[%emt 0:00:23]} 14. e4 {[%emt 0:14:59]} Qh4+ {[%emt 0:03:10]} 15. Qf2 {[%emt 0:00:38]} Qxf2+ {[%emt 0:15:24]} 16. Kxf2 {[%emt 0:00:09]} g6 {[%emt 0:00:20]} 17. Bg5 {[%emt 0:09:10]} Kg7 {[%emt 0:05:41]} 18. Be3 {[%emt 0:09:18]} Kg8 {[%emt 0:03:54]} 19. Bg5 {[%emt 0:11:03]} f6 {[%emt 0:05:05]} 20. Bh6 {[%emt 0:00:51]} Re8 {[%emt 0:00:05]} 21. Bd3 {[%emt 0:01:10]} Kf7 {[%emt 0:01:04]} 22. h4 {[%emt 0:00:49]} Bd7 {[%emt 0:00:24]} 23. f4 {[%emt 0:03:29]} b6 {[%emt 0:02:48]} 24. Rae1 {[%emt 0:00:56]} Re7 {[%emt 0:00:23]} 25. Be2 {[%emt 0:03:32]} Ng7 {[%emt 0:03:16]} 26. Bxg7 {[%emt 0:00:07]} Kxg7 {[%emt 0:00:01]} 27. Bf3 {[%emt 0:01:00]} Kh6 {[%emt 0:05:45]} 28. Re3 {[%emt 0:02:01]} Rae8 {[%emt 0:00:17]} 29. Rge1 {[%emt 0:00:22]} Kg7 {[%emt 0:00:20]} 30. Bd1 {[%emt 0:00:46]} f5 {[%emt 0:05:02]} 31. e5 {[%emt 0:00:04]} dxe5 {[%emt 0:00:07]} 32. Rxe5 {[%emt 0:01:46]} Kf6 {[%emt 0:00:13]} 33. Rxe7 {[%emt 0:00:23]} Rxe7 {[%emt 0:00:01]} 34. Rxe7 {[%emt 0:00:11]} Kxe7 {[%emt 0:00:01]} 35. Ke3 {[%emt 0:00:05]} Kd6 {[%emt 0:01:58]} 36. Kd4 {[%emt 0:00:05]} Be8 {[%emt 0:00:28]} 37. Bc2 {[%emt 0:00:19]} Bd7 {[%emt 0:00:39]} 38. Bd1 {[%emt 0:00:24]} a6 {[%emt 0:00:17]} 39. a4 {[%emt 0:01:19]} a5 {[%emt 0:00:41]} 40. Bc2 {[%emt 0:00:00]} Bc8 {[%emt 0:00:00]} 41. Bd1 {[%emt 0:01:27]} Bb7 {[%emt 0:02:30]} 42. Bc2 {[%emt 0:02:24]} Bc8 {[%emt 0:08:36]} 43. Bd1 {[%emt 0:00:22]} Bd7 {[%emt 0:01:23]} 44. Bb3 {[%emt 0:01:55]} c6 {[%emt 0:03:38]} 45. Bc2 {[%emt 0:03:37]} c5+ {[%emt 0:02:59]} 46. Ke3 {[%emt 0:00:08]} Ke7 {[%emt 0:00:05]} 47. Kf3 {[%emt 0:00:51]} Kf6 {[%emt 0:00:06]} 48. Kg3 {[%emt 0:00:56]} h6 {[%emt 0:00:42]} 49. Bd1 {[%emt 0:00:11]} g5 {[%emt 0:01:23]} 50. hxg5+ {[%emt 0:00:11]} hxg5 {[%emt 0:00:02]} 51. Bc2 {[%emt 0:00:12]} Be8 {[%emt 0:00:53]} 52. Bd1 {[%emt 0:00:13]} Kg6 {[%emt 0:00:57]} 53. Bc2 {[%emt 0:00:31]} Bf7 {[%emt 0:00:32]} 54. Bd3 {[%emt 0:00:31]} Kf6 {[%emt 0:01:33]} 55. Be2 {[%emt 0:00:10]} Bg6 {[%emt 0:00:34]} 56. Bf3 {[%emt 0:00:38]} Be8 {[%emt 0:02:02]} 57. Bd1 {[%emt 0:00:05]} Bd7 {[%emt 0:00:30]} 58. Bc2 {[%emt 0:00:12]} Kg6 {[%emt 0:00:09]} 59. Bd1 {[%emt 0:00:43]} Bc8 {[%emt 0:00:33]} 60. Bf3 {[%emt 0:01:17]} Kf6 {[%emt 0:00:30]} 61. Bd1 {[%emt 0:01:15]} Bd7 {[%emt 0:04:53]} 62. Bc2 {[%emt 0:00:30]} Be8 {[%emt 0:00:09]} 63. Bd1 {[%emt 0:00:07]} Bg6 {[%emt 0:01:07]} 64. Bf3 {[%emt 0:00:40]} Bf7 {[%emt 0:00:23]} 65. Be2 {[%emt 0:00:14]} Kg6 {[%emt 0:02:04]} 66. Bd3 {[%emt 0:00:37]} Be8 {[%emt 0:00:52]} 67. Bc2 {[%emt 0:00:08]} Kf6 {[%emt 0:00:45]} 1/2-1/2

[Event "69th RUS-ch Women Higher League 2019"]
[Site "Yaroslavl"]
[Date "2019.07.05"]
[Round "8.6"]
[White "Potapova, Margarita"]
[Black "Goltseva, Ekaterina"]
[Result "1-0"]
[ECO "D38"]
[WhiteElo "2256"]
[BlackElo "2304"]
[Annotator "NA"]
[PlyCount "83"]
[EventDate "2019.06.27"]
[EventType "swiss"]
[EventCountry "RUS"]
[SourceTitle "playchess.com"]
[Source "ChessBase"]
[SourceQuality "1"]
[TimeControl "40/5400+30:1800+30"]

1. d4 {[%emt 0:00:00]} Nf6 {[%emt 0:00:00]} 2. c4 {[%emt 0:00:00]} e6 {[%emt 0:00:00]} 3. Nf3 {[%emt 0:00:00]} d5 {[%emt 0:00:00]} 4. Nc3 {[%emt 0:00:00]} Bb4 {[%emt 0:00:23]} 5. cxd5 {[%emt 0:00:42]} exd5 {[%emt 0:00:17]} 6. Bg5 {[%emt 0:00:05]} h6 {[%emt 0:02:58]} 7. Bh4 {[%emt 0:00:07]} O-O {[%emt 0:11:15]} 8. e3 {[%emt 0:00:04]} c5 {[%emt 0:01:41]} 9. Bd3 {[%emt 0:04:08]} g5 {[%emt 0:20:46]} 10. Bg3 {[%emt 0:00:47]} Ne4 {[%emt 0:02:48]} 11. O-O {[%emt 0:05:53]} Bf5 {[%emt 0:10:41]} 12. dxc5 {[%emt 0:04:12]} Nc6 {[%emt 0:17:33]} 13. Nd4 {[%emt 0:09:43]} Bxc3 {[%emt 0:06:13]} 14. Nxf5 {[%emt 0:02:37]} Bg7 {[%emt 0:01:53]} 15. Nxg7 {[%emt 0:05:08]} Kxg7 {[%emt 0:02:15]} 16. Bxe4 {[%emt 0:02:04]} dxe4 {[%emt 0:00:03]} 17. Bd6 {[%emt 0:00:37]} Re8 {[%emt 0:00:33]} 18. b4 {[%emt 0:00:59]} Qf6 {[%emt 0:01:41]} 19. b5 {[%emt 0:01:01]} Ne5 {[%emt 0:03:35]} 20. Qd5 {[%emt 0:02:02]} b6 {[%emt 0:02:42]} 21. Qxe4 {[%emt 0:09:34]} bxc5 {[%emt 0:01:45]} 22. Bxc5 {[%emt 0:00:34]} Nd7 {[%emt 0:00:33]} 23. Qd4 {[%emt 0:01:34]} Nxc5 {[%emt 0:00:10]} 24. Qxc5 {[%emt 0:00:03]} Re5 {[%emt 0:02:06]} 25. Qc4 {[%emt 0:04:20]} Rd8 {[%emt 0:01:53]} 26. Rad1 {[%emt 0:06:22]} Kg8 {[%emt 0:01:03]} 27. a4 {[%emt 0:02:22]} Qe7 {[%emt 0:01:52]} 28. h3 {[%emt 0:02:30]} Rb8 {[%emt 0:01:08]} 29. Rd4 {[%emt 0:01:25]} Rc5 {[%emt 0:00:34]} 30. Qd3 {[%emt 0:00:14]} Rc7 {[%emt 0:01:47]} 31. Rd1 {[%emt 0:02:33]} Qe5 {[%emt 0:01:22]} 32. Rd5 {[%emt 0:00:54]} Qe7 {[%emt 0:01:32]} 33. Rd8+ {[%emt 0:03:00]} Rxd8 {[%emt 0:00:05]} 34. Qxd8+ {[%emt 0:00:03]} Kg7 {[%emt 0:00:17]} 35. Qxe7 {[%emt 0:00:11]} Rxe7 {[%emt 0:00:04]} 36. Rd6 {[%emt 0:00:31]} f6 {[%emt 0:00:49]} 37. Kh2 {[%emt 0:01:16]} Kg6 {[%emt 0:00:29]} 38. g4 {[%emt 0:00:16]} Kf7 {[%emt 0:00:47]} 39. Kg3 {[%emt 0:00:39]} Rc7 {[%emt 0:00:42]} 40. Kf3 {[%emt 0:00:00]} Ke7 {[%emt 0:00:00]} 41. Ra6 {[%emt 0:01:21]} Kf7 {[%emt 0:02:11]} 42. Ke4 {[%emt 0:01:00]} 1-0

[Event "69th RUS-ch Women Higher League 2019"]
[Site "Yaroslavl"]
[Date "2019.07.05"]
[Round "8.7"]
[White "Gritsayeva, Oksana"]
[Black "Lysenko, Margarita"]
[Result "1-0"]
[ECO "B23"]
[WhiteElo "2381"]
[BlackElo "2224"]
[Annotator "NA"]
[PlyCount "63"]
[EventDate "2019.06.27"]
[EventType "swiss"]
[EventCountry "RUS"]
[SourceTitle "playchess.com"]
[Source "ChessBase"]
[SourceQuality "1"]
[TimeControl "40/5400+30:1800+30"]

1. e4 {[%emt 0:00:00]} c5 {[%emt 0:00:00]} 2. Nc3 {[%emt 0:00:00]} d6 {[%emt 0:00:06]} 3. f4 {[%emt 0:00:00]} Nc6 {[%emt 0:00:18]} 4. Nf3 {[%emt 0:00:00]} g6 {[%emt 0:01:31]} 5. Bb5 {[%emt 0:00:14]} Bg7 {[%emt 0:10:44]} 6. Bxc6+ {[%emt 0:00:27]} bxc6 {[%emt 0:00:08]} 7. d3 {[%emt 0:00:04]} Nh6 {[%emt 0:07:10]} 8. O-O {[%emt 0:01:50]} f5 {[%emt 0:03:19]} 9. e5 {[%emt 0:10:54]} O-O {[%emt 0:12:22]} 10. Qe2 {[%emt 0:03:53]} Rb8 {[%emt 0:02:01]} 11. b3 {[%emt 0:13:18]} Nf7 {[%emt 0:09:15]} 12. Kh1 {[%emt 0:01:44]} Qa5 {[%emt 0:23:39]} 13. Bd2 {[%emt 0:09:00]} Qc7 {[%emt 0:00:43]} 14. Rae1 {[%emt 0:00:59]} Ba6 {[%emt 0:01:37]} 15. h3 {[%emt 0:02:28]} Qc8 {[%emt 0:03:03]} 16. Qf2 {[%emt 0:01:12]} Rb7 {[%emt 0:02:53]} 17. Re2 {[%emt 0:02:24]} Nd8 {[%emt 0:06:30]} 18. Rfe1 {[%emt 0:02:51]} d5 {[%emt 0:00:25]} 19. Qxc5 {[%emt 0:01:12]} Ne6 {[%emt 0:00:07]} 20. Qf2 {[%emt 0:02:52]} Rd7 {[%emt 0:00:22]} 21. Nd4 {[%emt 0:08:49]} Nxd4 {[%emt 0:01:15]} 22. Qxd4 {[%emt 0:00:04]} c5 {[%emt 0:00:28]} 23. Qf2 {[%emt 0:01:11]} Qc6 {[%emt 0:03:24]} 24. Na4 {[%emt 0:02:22]} c4 {[%emt 0:03:36]} 25. Nc5 {[%emt 0:02:38]} Rc7 {[%emt 0:00:14]} 26. Be3 {[%emt 0:00:43]} Rfc8 {[%emt 0:01:09]} 27. dxc4 {[%emt 0:03:34]} dxc4 {[%emt 0:00:11]} 28. Rd2 {[%emt 0:00:59]} Qb5 {[%emt 0:02:36]} 29. a4 {[%emt 0:01:22]} Qa5 {[%emt 0:00:18]} 30. b4 {[%emt 0:00:53]} Qb6 {[%emt 0:00:42]} 31. b5 {[%emt 0:06:23]} Bb7 {[%emt 0:00:12]} 32. Na6 {[%emt 0:00:16]} 1-0

[Event "69th RUS-ch Women Higher League 2019"]
[Site "Yaroslavl"]
[Date "2019.07.05"]
[Round "8.8"]
[White "Kabanova, Ekaterina"]
[Black "Bodnaruk, Anastasia"]
[Result "0-1"]
[ECO "E71"]
[WhiteElo "2099"]
[BlackElo "2440"]
[Annotator "NA"]
[PlyCount "80"]
[EventDate "2019.06.27"]
[EventType "swiss"]
[EventCountry "RUS"]
[SourceTitle "playchess.com"]
[Source "ChessBase"]
[SourceQuality "1"]
[TimeControl "40/5400+30:1800+30"]

1. d4 {[%emt 0:00:00]} Nf6 {[%emt 0:00:00]} 2. c4 {[%emt 0:00:19]} g6 {[%emt 0:00:00]} 3. Nc3 {[%emt 0:00:09]} Bg7 {[%emt 0:00:00]} 4. e4 {[%emt 0:00:25]} d6 {[%emt 0:00:00]} 5. h3 {[%emt 0:00:05]} O-O {[%emt 0:00:04]} 6. Be3 {[%emt 0:00:05]} e5 {[%emt 0:01:25]} 7. d5 {[%emt 0:00:34]} Na6 {[%emt 0:01:14]} 8. g4 {[%emt 0:01:44]} c6 {[%emt 0:00:35]} 9. Nge2 {[%emt 0:00:49]} cxd5 {[%emt 0:00:40]} 10. cxd5 {[%emt 0:00:07]} h5 {[%emt 0:00:42]} 11. g5 {[%emt 0:04:31]} Nh7 {[%emt 0:04:01]} 12. Rg1 {[%emt 0:00:39]} Bd7 {[%emt 0:04:51]} 13. Ng3 {[%emt 0:01:45]} h4 {[%emt 0:03:42]} 14. Nge2 {[%emt 0:05:07]} b5 {[%emt 0:06:13]} 15. Nc1 {[%emt 0:02:34]} b4 {[%emt 0:12:32]} 16. Bxa6 {[%emt 0:06:22]} bxc3 {[%emt 0:00:04]} 17. bxc3 {[%emt 0:00:23]} Qa5 {[%emt 0:00:28]} 18. Qd3 {[%emt 0:00:12]} Rab8 {[%emt 0:02:11]} 19. Ne2 {[%emt 0:06:55]} Qa3 {[%emt 0:12:54]} 20. Bc1 {[%emt 0:05:48]} Qa4 {[%emt 0:00:44]} 21. Be3 {[%emt 0:01:31]} Rb2 {[%emt 0:07:58]} 22. f3 {[%emt 0:14:10]} Bxh3 {[%emt 0:17:42]} 23. Qc4 {[%emt 0:03:58]} Qa5 {[%emt 0:04:29]} 24. Qc6 {[%emt 0:02:28]} Bd7 {[%emt 0:03:14]} 25. Qxd6 {[%emt 0:08:27]} Rd8 {[%emt 0:03:02]} 26. Bd3 {[%emt 0:09:14]} Bb5 {[%emt 0:01:48]} 27. Qc5 {[%emt 0:04:38]} Bf8 {[%emt 0:00:34]} 28. Qxa7 {[%emt 0:00:01]} Qxa7 {[%emt 0:00:30]} 29. Bxa7 {[%emt 0:00:03]} Bxd3 {[%emt 0:00:06]} 30. Nc1 {[%emt 0:00:25]} Ba6 {[%emt 0:03:31]} 31. Be3 {[%emt 0:00:51]} Rc8 {[%emt 0:01:30]} 32. Bd2 {[%emt 0:00:17]} Bc5 {[%emt 0:02:02]} 33. Rg4 {[%emt 0:02:51]} Bf2+ {[%emt 0:02:00]} 34. Kxf2 {[%emt 0:03:11]} Rxd2+ {[%emt 0:00:02]} 35. Ke1 {[%emt 0:00:03]} Rh2 {[%emt 0:00:56]} 36. f4 {[%emt 0:01:21]} Rxc3 {[%emt 0:01:28]} 37. d6 {[%emt 0:01:43]} Nf8 {[%emt 0:00:13]} 38. fxe5 {[%emt 0:00:19]} Rg3 {[%emt 0:01:29]} 39. Rxg3 {[%emt 0:00:43]} hxg3 {[%emt 0:00:01]} 40. a4 {[%emt 0:00:00]} Rh1+ {[%emt 0:00:00]} 0-1

[Event "69th RUS-ch Women Higher League 2019"]
[Site "Yaroslavl"]
[Date "2019.07.05"]
[Round "8.9"]
[White "Bivol, Alina"]
[Black "Voit, Daria"]
[Result "1/2-1/2"]
[ECO "A20"]
[WhiteElo "2391"]
[BlackElo "2339"]
[Annotator "NA"]
[PlyCount "111"]
[EventDate "2019.06.27"]
[EventType "swiss"]
[EventCountry "RUS"]
[SourceTitle "playchess.com"]
[Source "ChessBase"]
[SourceQuality "1"]
[TimeControl "40/5400+30:1800+30"]

1. c4 {[%emt 0:00:03]} e5 {[%emt 0:00:42]} 2. g3 {[%emt 0:00:45]} Nf6 {[%emt 0:00:43]} 3. Bg2 {[%emt 0:00:44]} c6 {[%emt 0:00:41]} 4. Nf3 {[%emt 0:02:48]} e4 {[%emt 0:08:23]} 5. Nd4 {[%emt 0:00:21]} Qb6 {[%emt 0:00:17]} 6. e3 {[%emt 0:08:29]} d5 {[%emt 0:01:10]} 7. Nc3 {[%emt 0:01:45]} Bb4 {[%emt 0:03:53]} 8. cxd5 {[%emt 0:00:48]} cxd5 {[%emt 0:00:10]} 9. Qb3 {[%emt 0:01:17]} Bxc3 {[%emt 0:06:09]} 10. bxc3 {[%emt 0:02:21]} Nc6 {[%emt 0:01:37]} 11. Ba3 {[%emt 0:04:46]} Qxb3 {[%emt 0:01:09]} 12. axb3 {[%emt 0:00:31]} Nxd4 {[%emt 0:02:11]} 13. exd4 {[%emt 0:00:12]} Bd7 {[%emt 0:13:48]} 14. O-O {[%emt 0:04:37]} Be6 {[%emt 0:11:21]} 15. Rfc1 {[%emt 0:02:20]} Kd7 {[%emt 0:04:18]} 16. Bf1 {[%emt 0:01:04]} a6 {[%emt 0:03:07]} 17. c4 {[%emt 0:00:46]} Rhc8 {[%emt 0:00:35]} 18. d3 {[%emt 0:00:30]} g6 {[%emt 0:05:12]} 19. Ra2 {[%emt 0:04:37]} exd3 {[%emt 0:06:17]} 20. Bxd3 {[%emt 0:00:06]} Ne8 {[%emt 0:00:20]} 21. Kg2 {[%emt 0:02:43]} Nc7 {[%emt 0:06:42]} 22. Re2 {[%emt 0:03:27]} b5 {[%emt 0:03:39]} 23. cxb5 {[%emt 0:03:19]} Nxb5 {[%emt 0:00:04]} 24. Rxc8 {[%emt 0:00:13]} Rxc8 {[%emt 0:00:32]} 25. Bc5 {[%emt 0:00:03]} Kc6 {[%emt 0:03:31]} 26. h3 {[%emt 0:02:29]} Re8 {[%emt 0:00:46]} 27. g4 {[%emt 0:02:21]} Bd7 {[%emt 0:00:02]} 28. Rxe8 {[%emt 0:01:29]} Bxe8 {[%emt 0:00:02]} 29. Kg3 {[%emt 0:01:22]} Kd7 {[%emt 0:03:36]} 30. Kf4 {[%emt 0:00:30]} f6 {[%emt 0:00:10]} 31. h4 {[%emt 0:01:31]} Ke6 {[%emt 0:02:03]} 32. h5 {[%emt 0:01:04]} Kf7 {[%emt 0:02:22]} 33. g5 {[%emt 0:03:05]} Nc7 {[%emt 0:00:06]} 34. hxg6+ {[%emt 0:00:58]} hxg6 {[%emt 0:00:03]} 35. gxf6 {[%emt 0:02:03]} Kxf6 {[%emt 0:00:06]} 36. Bd6 {[%emt 0:00:51]} Ne6+ {[%emt 0:00:13]} 37. Ke3 {[%emt 0:00:06]} Bb5 {[%emt 0:00:04]} 38. Be5+ {[%emt 0:00:16]} Kf7 {[%emt 0:00:35]} 39. Bc2 {[%emt 0:00:24]} Ng5 {[%emt 0:00:20]} 40. Bd1 {[%emt 0:00:00]} Bf1 {[%emt 0:00:00]} 41. Bg4 {[%emt 0:01:34]} Bb5 {[%emt 0:03:27]} 42. Bd1 {[%emt 0:02:40]} Bf1 {[%emt 0:00:23]} 43. Bf4 {[%emt 0:01:15]} Ne6 {[%emt 0:01:38]} 44. Bf3 {[%emt 0:01:03]} Nxf4 {[%emt 0:02:11]} 45. Kxf4 {[%emt 0:00:01]} Ke6 {[%emt 0:00:09]} 46. Kg5 {[%emt 0:03:17]} Bd3 {[%emt 0:00:05]} 47. Bg4+ {[%emt 0:00:38]} Kd6 {[%emt 0:00:17]} 48. b4 {[%emt 0:03:08]} Kc6 {[%emt 0:00:53]} 49. Be6 {[%emt 0:12:56]} Kb5 {[%emt 0:01:36]} 50. Bxd5 {[%emt 0:01:12]} Kxb4 {[%emt 0:00:03]} 51. Kf6 {[%emt 0:03:01]} a5 {[%emt 0:00:42]} 52. Ba2 {[%emt 0:01:24]} a4 {[%emt 0:09:00]} 53. d5 {[%emt 0:01:28]} Kc5 {[%emt 0:00:57]} 54. Ke7 {[%emt 0:00:35]} a3 {[%emt 0:00:46]} 55. d6 {[%emt 0:02:54]} Bb5 {[%emt 0:00:08]} 56. d7 {[%emt 0:02:04]} 1/2-1/2

[Event "69th RUS-ch Women Higher League 2019"]
[Site "Yaroslavl"]
[Date "2019.07.05"]
[Round "8.10"]
[White "Borisova, Ekaterina"]
[Black "Dordzhieva, Dinara"]
[Result "1-0"]
[ECO "B40"]
[WhiteElo "2267"]
[BlackElo "2306"]
[Annotator "NA"]
[PlyCount "89"]
[EventDate "2019.06.27"]
[EventType "swiss"]
[EventCountry "RUS"]
[SourceTitle "playchess.com"]
[Source "ChessBase"]
[SourceQuality "1"]
[TimeControl "40/5400+30:1800+30"]

1. e4 {[%emt 0:00:00]} c5 {[%emt 0:00:09]} 2. Nf3 {[%emt 0:00:00]} e6 {[%emt 0:00:05]} 3. d4 {[%emt 0:00:17]} cxd4 {[%emt 0:00:10]} 4. Nxd4 {[%emt 0:00:03]} Nf6 {[%emt 0:00:07]} 5. Bd3 {[%emt 0:01:33]} Nc6 {[%emt 0:00:39]} 6. Nxc6 {[%emt 0:00:07]} bxc6 {[%emt 0:00:10]} 7. O-O {[%emt 0:00:16]} d5 {[%emt 0:00:03]} 8. c4 {[%emt 0:00:26]} Be7 {[%emt 0:13:38]} 9. Nc3 {[%emt 0:02:29]} O-O {[%emt 0:00:13]} 10. Qc2 {[%emt 0:06:38]} d4 {[%emt 0:06:02]} 11. Na4 {[%emt 0:00:59]} e5 {[%emt 0:02:19]} 12. c5 {[%emt 0:00:22]} Be6 {[%emt 0:04:06]} 13. b4 {[%emt 0:06:57]} Rb8 {[%emt 0:08:04]} 14. a3 {[%emt 0:02:13]} Nh5 {[%emt 0:04:34]} 15. Be2 {[%emt 0:05:57]} g6 {[%emt 0:04:58]} 16. Bxh5 {[%emt 0:05:20]} gxh5 {[%emt 0:01:14]} 17. Bh6 {[%emt 0:01:04]} Re8 {[%emt 0:00:13]} 18. Qe2 {[%emt 0:02:50]} h4 {[%emt 0:09:14]} 19. Qh5 {[%emt 0:06:44]} Bf6 {[%emt 0:09:47]} 20. f4 {[%emt 0:06:34]} d3 {[%emt 0:03:22]} 21. f5 {[%emt 0:12:18]} Bb3 {[%emt 0:02:48]} 22. Nb2 {[%emt 0:05:07]} Qd4+ {[%emt 0:04:23]} 23. Kh1 {[%emt 0:02:02]} Qxb2 {[%emt 0:07:02]} 24. Bg5 {[%emt 0:01:00]} Bg7 {[%emt 0:00:03]} 25. f6 {[%emt 0:00:37]} Bf8 {[%emt 0:00:26]} 26. Qxh4 {[%emt 0:05:24]} Qd4 {[%emt 0:03:40]} 27. Bd2 {[%emt 0:02:20]} Kh8 {[%emt 0:12:04]} 28. Rae1 {[%emt 0:00:39]} Be6 {[%emt 0:00:28]} 29. Re3 {[%emt 0:02:23]} Qb2 {[%emt 0:01:14]} 30. Bc1 {[%emt 0:04:15]} Qc2 {[%emt 0:00:48]} 31. Rg3 {[%emt 0:00:15]} d2 {[%emt 0:01:10]} 32. Qg5 {[%emt 0:02:54]} Bh6 {[%emt 0:00:09]} 33. Qxh6 {[%emt 0:00:19]} Rg8 {[%emt 0:00:05]} 34. Bxd2 {[%emt 0:03:54]} Qxe4 {[%emt 0:00:12]} 35. Re1 {[%emt 0:03:45]} Qf5 {[%emt 0:00:55]} 36. Rg5 {[%emt 0:03:40]} Qd3 {[%emt 0:00:47]} 37. Rg7 {[%emt 0:02:36]} Bd5 {[%emt 0:01:19]} 38. Qg5 {[%emt 0:01:59]} Rbd8 {[%emt 0:00:53]} 39. Bc1 {[%emt 0:00:59]} Qc2 {[%emt 0:00:44]} 40. h3 {[%emt 0:00:00]} Be4 41. Kh2 {[%emt 0:03:57]} Rde8 {[%emt 0:02:30]} 42. h4 {[%emt 0:02:18]} a6 {[%emt 0:00:48]} 43. h5 {[%emt 0:00:31]} Bf5 {[%emt 0:07:49]} 44. Rxe5 {[%emt 0:01:50]} Be6 {[%emt 0:00:18]} 45. Rxe6 {[%emt 0:02:06]} 1-0

[Event "69th RUS-ch Women Higher League 2019"]
[Site "Yaroslavl"]
[Date "2019.07.05"]
[Round "8.11"]
[White "Ambartsumova, Karina"]
[Black "Protopopova, Anastasiya"]
[Result "1-0"]
[ECO "A06"]
[WhiteElo "2359"]
[BlackElo "2272"]
[Annotator "NA"]
[PlyCount "43"]
[EventDate "2019.06.27"]
[EventType "swiss"]
[EventCountry "RUS"]
[SourceTitle "playchess.com"]
[Source "ChessBase"]
[SourceQuality "1"]
[TimeControl "40/5400+30:1800+30"]

1. Nf3 {[%emt 0:00:00]} d5 {[%emt 0:00:00]} 2. e3 {[%emt 0:00:39]} c5 {[%emt 0:01:57]} 3. d4 {[%emt 0:02:56]} cxd4 {[%emt 0:02:56]} 4. exd4 {[%emt 0:01:41]} g6 {[%emt 0:00:24]} 5. Bd3 {[%emt 0:04:38]} Bg7 {[%emt 0:00:39]} 6. O-O {[%emt 0:01:21]} Nc6 {[%emt 0:01:28]} 7. c3 {[%emt 0:00:19]} Nf6 {[%emt 0:01:29]} 8. Re1 {[%emt 0:07:19]} O-O {[%emt 0:00:40]} 9. Nbd2 {[%emt 0:05:09]} Nd7 {[%emt 0:07:47]} 10. Nb3 {[%emt 0:05:01]} e5 {[%emt 0:11:09]} 11. dxe5 {[%emt 0:02:26]} Ndxe5 {[%emt 0:00:26]} 12. Nxe5 {[%emt 0:12:12]} Bxe5 {[%emt 0:02:15]} 13. Bf1 {[%emt 0:03:11]} Qd6 {[%emt 0:24:43]} 14. g3 {[%emt 0:02:17]} Rd8 {[%emt 0:06:41]} 15. Bg5 {[%emt 0:08:32]} Bf6 {[%emt 0:04:10]} 16. Be3 {[%emt 0:02:07]} Bf5 {[%emt 0:03:52]} 17. Bg2 {[%emt 0:04:46]} d4 {[%emt 0:10:24]} 18. cxd4 {[%emt 0:07:07]} Nxd4 {[%emt 0:00:30]} 19. Nxd4 {[%emt 0:02:03]} Bxd4 {[%emt 0:00:10]} 20. Bxd4 {[%emt 0:00:33]} Qa6 {[%emt 0:09:03]} 21. Qb3 {[%emt 0:03:49]} Rxd4 {[%emt 0:04:17]} 22. Bxb7 {[%emt 0:00:13]} 1-0

[Event "69th RUS-ch Women Higher League 2019"]
[Site "Yaroslavl"]
[Date "2019.07.05"]
[Round "8.12"]
[White "Guseva, Marina"]
[Black "Nosacheva, Mariya"]
[Result "0-1"]
[ECO "E63"]
[WhiteElo "2379"]
[BlackElo "2150"]
[Annotator "NA"]
[PlyCount "69"]
[EventDate "2019.06.27"]
[EventType "swiss"]
[EventCountry "RUS"]
[SourceTitle "playchess.com"]
[Source "ChessBase"]
[SourceQuality "1"]
[TimeControl "40/5400+30:1800+30"]

1. d4 {[%emt 0:00:00]} Nf6 {[%emt 0:00:00]} 2. c4 {[%emt 0:00:00]} g6 {[%emt 0:00:00]} 3. Nf3 {[%emt 0:00:00]} Bg7 {[%emt 0:00:00]} 4. g3 {[%emt 0:00:00]} O-O {[%emt 0:00:01]} 5. Bg2 {[%emt 0:00:00]} d6 {[%emt 0:00:08]} 6. O-O {[%emt 0:00:00]} Nc6 {[%emt 0:00:04]} 7. Nc3 {[%emt 0:00:00]} a6 {[%emt 0:00:06]} 8. e3 {[%emt 0:00:19]} Rb8 {[%emt 0:00:16]} 9. Qe2 {[%emt 0:00:04]} b5 {[%emt 0:00:14]} 10. Rd1 {[%emt 0:00:15]} e6 {[%emt 0:00:17]} 11. b3 {[%emt 0:04:05]} Bb7 {[%emt 0:01:58]} 12. Bb2 {[%emt 0:02:40]} Ne7 {[%emt 0:07:48]} 13. Ne1 {[%emt 0:10:15]} Bxg2 {[%emt 0:05:04]} 14. Nxg2 {[%emt 0:00:02]} c6 {[%emt 0:00:10]} 15. e4 {[%emt 0:00:10]} d5 {[%emt 0:00:16]} 16. e5 {[%emt 0:04:01]} Nd7 {[%emt 0:00:08]} 17. cxd5 {[%emt 0:00:53]} cxd5 {[%emt 0:04:07]} 18. Ne3 {[%emt 0:00:09]} Qb6 {[%emt 0:06:54]} 19. Qg4 {[%emt 0:05:51]} f6 {[%emt 0:05:02]} 20. Ba3 {[%emt 0:24:55]} Rbe8 {[%emt 0:12:56]} 21. Ncxd5 {[%emt 0:14:18]} Nxd5 {[%emt 0:03:21]} 22. Nxd5 {[%emt 0:00:06]} exd5 {[%emt 0:01:36]} 23. Qxd7 {[%emt 0:00:05]} Rd8 {[%emt 0:04:49]} 24. Qg4 {[%emt 0:04:33]} b4 {[%emt 0:02:20]} 25. exf6 {[%emt 0:00:34]} Qxf6 {[%emt 0:01:59]} 26. Bxb4 {[%emt 0:00:05]} Qxf2+ {[%emt 0:00:07]} 27. Kh1 {[%emt 0:00:02]} Rf5 {[%emt 0:02:06]} 28. Rd2 {[%emt 0:04:33]} Qe3 {[%emt 0:01:36]} 29. Rad1 {[%emt 0:01:28]} Re8 {[%emt 0:01:38]} 30. Bc5 {[%emt 0:07:10]} Bh6 {[%emt 0:03:40]} 31. Rg2 {[%emt 0:03:02]} Re4 {[%emt 0:00:51]} 32. Qh3 {[%emt 0:00:04]} Qf3 {[%emt 0:00:43]} 33. Rdg1 {[%emt 0:00:29]} Bg5 {[%emt 0:00:26]} 34. b4 {[%emt 0:01:24]} Be3 {[%emt 0:02:18]} 35. a3 0-1